[Event "GER-ch Youth-U14 2022"]
[Site "Willingen"]
[Date "2022.06.09"]
[Round "7.22"]
[White "Grundmann, Max"]
[Black "Weber, Nikita"]
[Result "0-1"]
[ECO "D51"]
[WhiteElo "1358"]
[BlackElo "1264"]
[Annotator "NA RC COMBH"]
[PlyCount "62"]
[EventDate "2022.06.05"]
[EventType "swiss"]
[EventRounds "9"]
[EventCountry "GER"]
[SourceTitle "playchess.com"]
[Source "ChessBase"]
[SourceQuality "1"]
[TimeControl "40/4500+30:900+30"]

1. d4 {[%emt 0:00:00]} d5 {[%emt 0:00:00]} 2. c4 {[%emt 0:00:00]} c6 {[%emt 0:00:00]} 3. Nc3 {[%emt 0:00:00]} Nf6 {[%emt 0:00:00]} 4. Bg5 {[%emt 0:00:00]} e6 {[%emt 0:00:00]} 5. e3 {[%emt 0:00:00]} Nbd7 {[%emt 0:00:00]} 6. cxd5 {[%emt 0:00:00]} exd5 {[%emt 0:00:00]} 7. Nf3 {[%emt 0:00:00]} Bd6 {[%emt 0:00:00]} 8. Bd3 {[%emt 0:00:00]} O-O {[%emt 0:00:00]} 9. O-O {[%emt 0:00:00]} Re8 {[%emt 0:00:00]} 10. Rb1 {[%emt 0:00:00]} Qc7 {[%emt 0:01:53]} 11. Ne2 {[%emt 0:00:00]} Ne4 {[%emt 0:07:39]} 12. Bf4 {[%emt 0:00:00]} Bxf4 {[%emt 0:07:49]} 13. Nxf4 {[%emt 0:00:06]} Nf8 {[%emt 0:03:48]} 14. b4 {[%emt 0:01:57]} Nc3 {[%emt 0:04:47]} 15. Qc2 {[%emt 0:02:15]} Nxb1 {[%emt 0:00:35]} 16. Rxb1 {[%emt 0:00:11]} f6 {[%emt 0:07:20]} 17. b5 {[%emt 0:03:22]} Bd7 {[%emt 0:03:06]} 18. Nxd5 {[%emt 0:03:32]} Qa5 {[%emt 0:05:55]} 19. bxc6 {[%emt 0:04:22]} Bxc6 {[%emt 0:02:10]} 20. Bc4 {[%emt 0:18:51]} Kh8 {[%emt 0:05:09]} 21. Qb3 {[%emt 0:04:30]} Rad8 {[%emt 0:06:40]} 22. Nf4 {[%emt 0:07:14]} Bxf3 {[%emt 0:05:30]} 23. gxf3 {[%emt 0:00:22]} Qg5+ {[%emt 0:00:18]} 24. Kf1 {[%emt 0:01:11]} Rxd4 {[%emt 0:03:44]} 25. exd4 {[%emt 0:06:11]} Qxf4 {[%emt 0:00:15]} 26. Re1 {[%emt 0:01:21]} Rxe1+ {[%emt 0:01:15]} 27. Kxe1 {[%emt 0:00:13]} Qc1+ {[%emt 0:00:34]} 28. Ke2 {[%emt 0:00:50]} Ng6 {[%emt 0:00:16]} 29. f4 {[%emt 0:02:55]} Nxf4+ {[%emt 0:04:23]} 30. Kf3 {[%emt 0:00:09]} g5 {[%emt 0:00:24]} 31. Bd5 {[%emt 0:01:48]} Qh1+ {[%emt 0:00:58]} 0-1

[Event "GER-ch Youth-U14 2022"]
[Site "Willingen"]
[Date "2022.06.10"]
[Round "8.1"]
[White "Möller, Maurin"]
[Black "Deuer, Marius"]
[Result "1/2-1/2"]
[ECO "B10"]
[WhiteElo "1780"]
[BlackElo "2359"]
[Annotator "TA"]
[PlyCount "114"]
[EventDate "2022.06.05"]
[EventType "swiss"]
[EventRounds "9"]
[EventCountry "GER"]
[SourceTitle "playchess.com"]
[Source "ChessBase"]
[SourceQuality "1"]
[TimeControl "40/4500+30:900+30"]

{[%evp 14,114,9,-9,0,-14,-10,-19,-22,-18,-12,-20,0,0,-8,-45,-34,-35,-41,-45,-51,-65,-40,-163,-178,-169,-151,-174,-184,-152,-163,-152,-154,-154,-146,-152,-135,-131,-131,-193,-138,-156,-165,-153,-129,-127,-85,-73,-64,-74,-68,-64,-60,-69,-14,-14,0,0,620,647,581,664,652,659,654,650,635,625,666,602,579,597,1427,1277,29960,29961,29960,11215,9477,30,30,30,31,14,30,30,30,30,35,35,124,14,8941,8134,6084,2358,1657,160,164,0,0,0,0]} 1. e4 {[%emt 0:00:00]} c6 {[%emt 0:00:00]} 2. c4 {[%emt 0:00:00]} d5 {[%emt 0:00:00]} 3. exd5 {[%emt 0:00:00]} cxd5 {[%emt 0:00:00]} 4. cxd5 {[%emt 0:00:00]} Nf6 {[%emt 0:00:00]} 5. Nc3 {[%emt 0:00:00]} Nxd5 {[%emt 0:00:00]} 6. Nf3 {[%emt 0:00:00]} Nc6 {[%emt 0:00:00]} 7. Bc4 {[%emt 0:00:00]} Nb6 {[%emt 0:00:00]} 8. Bb3 {[%emt 0:00:00]} Na5 {[%emt 0:00:00] 8...g6 is the modern continuation. B10: Caro-Kann: 2 d3 and 2 c4.} 9. Bc2 {[%emt 0:00:00] [#]} g6 $146 {[%emt 0:00:00]} ({Predecessor:} 9... Bg4 10. d4 e6 11. h3 Bh5 12. Ba4+ Nc6 13. Bb5 Rc8 14. g4 Bg6 15. h4 Bb4 16. Qe2 {½-½ (26) Aaberg,A (2386)-Akesson,J (2325) Sweden 2010}) 10. O-O {[%emt 0:00:00]} Bg7 {[%emt 0:00:00]} 11. d4 {[%emt 0:00:00]} O-O {[%emt 0:00:00]} 12. h3 {[%emt 0:20:43] Prevents Bg4.} Be6 {[%emt 0:00:00]} 13. Re1 {[%emt 0:06:23]} Rc8 {[%emt 0:12:37]} 14. Ne2 {[%emt 0:14:27]} Nc6 {[%emt 0:18:01]} (14... Bd5 {feels hotter.} 15. Ne5 e6 16. Nc3 Nc6) 15. Nf4 {[%emt 0:07:11]} Bc4 {[%emt 0:01:38][%cal Rc6d4]} ({Don't play} 15... Bxd4 16. Nxe6 fxe6 17. Bb3 $16) 16. Be3 {[%emt 0:01:05]} Nd5 {[%emt 0:03:42][%cal Bb6d5,Bd5b4,Bb4c2][%mdl 32]} 17. Bb3 {[%emt 0:07:08]} Na5 {[%emt 0:17:07]} 18. Nd3 {[%emt 0:04:17]} (18. Nxd5 $15 Qxd5 19. Bxc4 Nxc4 20. Bf4) 18... Nxb3 $19 {[%emt 0:02:01]} 19. axb3 {[%emt 0:00:12]} Bxd3 {[%emt 0:00:13]} 20. Qxd3 {[%emt 0:00:44]} Nb4 $1 {[%emt 0:00:23]} 21. Qe4 {[%emt 0:00:45]} Nc2 {[%emt 0:00:27]} 22. Rxa7 {[%emt 0:00:14]} Nxe1 {[%emt 0:01:20]} 23. Nxe1 {[%emt 0:00:02]} Rc7 {[%emt 0:03:39]} 24. Nd3 {[%emt 0:02:46]} b6 {[%emt 0:06:30]} 25. Ra6 {[%emt 0:00:32]} Rc8 {[%emt 0:08:10]} 26. Nb4 {[%emt 0:05:32]} (26. b4 $17) 26... e6 {[%emt 0:05:45]} ({Better is} 26... Qd6 $19 27. d5 (27. Nd5 $2 e6 $17) 27... f5 28. Qe6+ Qxe6 29. dxe6 Rfd8 30. Rxb6 Kf8) 27. d5 {[%emt 0:08:24]} exd5 {[%emt 0:00:36]} 28. Qxd5 {[%emt 0:00:08]} Qc7 {[%emt 0:02:22]} 29. Rxb6 {[%emt 0:01:21][%cal Ba6b6,Bb6b7,Bb7e7][%mdl 32]} Rfd8 {[%emt 0:04:26]} 30. Qf3 {[%emt 0:00:06]} Ra8 {[%emt 0:00:33][%mdl 1024] ( -> ...Ra1+). Black has strong compensation.} 31. g3 {[%emt 0:02:05]} Qd7 {[%emt 0:00:42]} (31... Bxb2 $2 32. Rb7 Qxb7 33. Qxb7 $18) 32. Rb7 {[%emt 0:00:31]} Qe6 {[%emt 0:00:37]} 33. Nc6 {[%emt 0:01:16]} Re8 {[%emt 0:00:06]} (33... Rd6 $15 34. Ne7+ Kh8) 34. Kh2 $11 {[%emt 0:01:34]} Ra2 {[%emt 0:00:59]} 35. Bc5 $1 {[%emt 0:03:26]} Rxb2 $2 {[%emt 0:00:28][%mdl 8192]} (35... Bxb2 $11 36. Bd4 Bc1) 36. Re7 $18 {[%emt 0:00:09]} Rxf2+ {[%emt 0:00:34]} 37. Qxf2 {[%emt 0:00:20]} Rxe7 {[%emt 0:00:24]} 38. Nxe7+ {[%emt 0:00:06]} Kh8 {[%emt 0:00:07]} 39. b4 {[%emt 0:00:53]} h5 {[%emt 0:00:31]} 40. b5 {[%emt 0:00:18]} h4 {[%emt 0:00:58]} 41. g4 {[%emt 0:00:00]} Be5+ {[%emt 0:00:00]} 42. Kg2 {[%emt 0:00:00]} Bf6 {[%emt 0:01:56]} 43. Qe3 {[%emt 0:00:00]} Qxe3 {[%emt 0:03:37]} 44. Bxe3 {[%emt 0:00:00]} Bxe7 {[%emt 0:00:04] KB-KB} 45. Ba7 {[%emt 0:00:00]} (45. Kf3 $142 Bd6 46. b6 Kh7 47. Bd4 Kh6 48. Bf6 g5 49. Ke4 Kg6 50. Be5) 45... Kg7 {[%emt 0:01:54]} 46. Kf3 $2 {[%emt 0:00:00]} (46. Bd4+ $18 Kh6 47. b6) 46... Kf6 $11 {[%emt 0:02:41]} 47. Ke4 {[%emt 0:01:11] Hoping for Kd5.} Ke6 {[%emt 0:02:02]} 48. Bd4 {[%emt 0:01:03]} f5+ {[%emt 0:03:57]} 49. gxf5+ {[%emt 0:07:54]} gxf5+ {[%emt 0:00:01]} 50. Kf4 {[%emt 0:00:09]} Bd6+ {[%emt 0:00:10]} 51. Kg5 {[%emt 0:00:21]} Kd5 {[%emt 0:00:43] [#]} (51... Be7+ $1 $14 52. Kh5 f4) 52. Ba7 {[%emt 0:00:22]} (52. Bg1 $1 $16) 52... Ke4 $2 {[%emt 0:00:38][%mdl 8192]} (52... Kc4 $11) 53. Kxh4 $18 {[%emt 0:00:17]} Kf3 {[%emt 0:01:30]} 54. Kg5 {[%emt 0:01:02]} (54. Bb6 $142 f4 55. Kg5) 54... f4 {[%emt 0:00:25]} 55. Bd4 $2 {[%emt 0:00:34]} (55. Bb6 $18 {and the rest is easy. Black must now prevent h4.} Kg3 56. h4 Be7+ 57. Kf5 Bxh4 58. Bc7) 55... Kg3 $16 {[%emt 0:02:49] [#]} (55... Ke4 $2 56. Bg1 $18) 56. b6 $2 {[%emt 0:01:35]} ({White has to play} 56. h4 $1 $18 {b6 is the strong threat.} Be7+ 57. Kf5 Bxh4 58. Be5 (58. b6 Bd8 $14)) 56... Kxh3 $11 {[%emt 0:00:25]} 57. b7 {[%emt 0:00:17]} f3 {[%emt 0:00:15] Both players deserved the win here.  Weighted Error Value: White=0.50/Black=0.37} 1/2-1/2

[Event "GER-ch Youth-U14 2022"]
[Site "Willingen"]
[Date "2022.06.10"]
[Round "8.2"]
[White "Ermitsch, Magnus"]
[Black "Besou, Hussain"]
[Result "1-0"]
[ECO "B99"]
[WhiteElo "2222"]
[BlackElo "2094"]
[Annotator "TA"]
[PlyCount "57"]
[EventDate "2022.06.05"]
[EventType "swiss"]
[EventRounds "9"]
[EventCountry "GER"]
[SourceTitle "playchess.com"]
[Source "ChessBase"]
[SourceQuality "1"]
[TimeControl "40/4500+30:900+30"]

{[%evp 20,57,35,0,9,-8,66,61,70,-8,-6,-8,106,116,181,96,170,174,250,236,274,281,297,289,414,417,397,359,382,400,381,268,393,337,1443,1432,29986,729,675,658]} 1. e4 {[%emt 0:00:00]} c5 {[%emt 0:00:00]} 2. Nf3 {[%emt 0:00:00]} d6 {[%emt 0:00:00]} 3. d4 {[%emt 0:00:00]} cxd4 {[%emt 0:00:00]} 4. Nxd4 {[%emt 0:00:00]} Nf6 {[%emt 0:00:00]} 5. Nc3 {[%emt 0:00:00]} a6 {[%emt 0:00:00]} 6. Bg5 {[%emt 0:00:00]} e6 {[%emt 0:00:00]} 7. f4 {[%emt 0:00:00]} Be7 {[%emt 0:00:00]} 8. Qf3 {[%emt 0:00:00]} Qc7 {[%emt 0:00:00]} 9. O-O-O {[%emt 0:00:00]} Nbd7 {[%emt 0:00:00]} 10. g4 {[%emt 0:00:00]} b5 {[%emt 0:00:00]} 11. a3 {[%emt 0:03:03]} (11. Bxf6 $5 Nxf6 12. g5 $11) 11... Bb7 {[%emt 0:19:16] B99: Sicilian Najdorf: 6 Bg5 e6 7 f4 Be7 8 Qf3 Qc7 9 0-0-0 Nbd7.} 12. h4 {[%emt 0:03:19]} h6 {[%emt 0:08:56]} (12... Qb6 $11) 13. Bxf6 $14 {[%emt 0:02:37]} Bxf6 {[%emt 0:02:27] [#] White is slightly better.} 14. g5 $146 {[%emt 0:04:21]} ({Better is} 14. Bxb5 $1 $14 axb5 15. Ndxb5) ({Predecessor:} 14. Bg2 Rc8 15. g5 hxg5 16. hxg5 Rxh1 17. Bxh1 Bxd4 18. Rxd4 Qc5 19. Rd2 {½-½ (19) MacLeod,A-Kreuzer,C London 2001}) 14... Bxd4 $11 {[%emt 0:00:14]} 15. Rxd4 {[%emt 0:00:09][%cal Of1b5] And now Bxb5! would win.} e5 {[%emt 0:06:25]} (15... Qc5 $11 16. Rd3 b4 17. axb4 Qxb4) 16. Rd1 $16 {[%emt 0:03:28][%cal Of1b5,Bd4d1,Bd1f1,Bf1h1,Bh1h7][%mdl 32] White is more active.} exf4 {[%emt 0:00:05] [#]} (16... Bc6 $16) 17. Qxf4 {[%emt 0:01:30]} (17. Bxb5 $1 $18 {[%cal Oh1g1][%mdl 512] Strongly threatening Rhg1!} hxg5 (17... O-O-O 18. Bxd7+) 18. Bxd7+ Qxd7 19. hxg5 Rxh1 20. Rxh1) 17... Ne5 {[%emt 0:00:21] [#]} (17... Qc5 $16 {is a better defense.}) 18. Bxb5+ $1 $18 {[%emt 0:07:51][%cal Bf1b5,Bb5a4,Ba4b3][%mdl 32]} Kf8 {[%emt 0:04:56]} (18... axb5 $142 19. Nxb5 Qe7) 19. Ba4 {[%emt 0:01:45]} Qe7 {[%emt 0:05:09]} 20. Bb3 {[%emt 0:01:19]} Rd8 {[%emt 0:05:49]} 21. Rdf1 {[%emt 0:01:55]} hxg5 {[%emt 0:00:26]} (21... Rd7 {was necessary.} 22. Kb1 Bc6) 22. hxg5 {[%emt 0:00:30][%cal Rh1h8]} Rxh1 {[%emt 0:00:04]} 23. Rxh1 {[%emt 0:00:12][%cal Rh1h8]} Ng6 {[%emt 0:00:06] Inhibits Rh8+.} 24. Qf5 {[%emt 0:03:16]} Qd7 {[%emt 0:01:15] White must now prevent ...Qxf5.} 25. Rh7 {[%emt 0:10:21]} Bc8 {[%emt 0:04:29]} (25... Ne5 {keeps fighting.} 26. Qf2 (26. Rh8+ Ke7 $18) 26... Qg4 27. Rxg7 Kxg7) 26. Qf3 {[%emt 0:07:54]} Qe7 $2 {[%emt 0:03:28]} (26... d5 27. Bxd5 Qc7) 27. Qh5 {[%emt 0:01:10][%cal Oh7h8] White threatens Rh8+! and mate.} Qa7 {[%emt 0:07:38] [#]} 28. Kb1 {[%emt 0:03:17]} (28. Rh8+ $142 $1 {[%mdl 512]} Nxh8 (28... Ke7 29. Nd5+) 29. Qxh8+ Ke7 30. Nd5+ Kd7 31. Ba4+ Ke6 32. Qh3+ Ke5 33. Qg3+ Ke6 34. Qg4+ Ke5 35. Qf4+ Kd4 36. Bb3 Kc5 37. Qe3+ Kb5 38. Qxa7 Rh8 39. Qb6#) 28... Qg1+ {[%emt 0:01:14]} 29. Ka2 {[%emt 0:04:08] Weighted Error Value: White=0.27 (precise) /Black=0.91} 1-0

[Event "GER-ch Youth-U14 2022"]
[Site "Willingen"]
[Date "2022.06.10"]
[Round "8.3"]
[White "Haubold, Sebastian Marcel"]
[Black "Sreyas Payyappat"]
[Result "0-1"]
[ECO "B19"]
[WhiteElo "1869"]
[BlackElo "2169"]
[Annotator "TA"]
[PlyCount "70"]
[EventDate "2022.06.05"]
[EventType "swiss"]
[EventRounds "9"]
[EventCountry "GER"]
[SourceTitle "playchess.com"]
[Source "ChessBase"]
[SourceQuality "1"]
[TimeControl "40/4500+30:900+30"]

{[%evp 24,70,16,5,0,-7,-14,-18,-18,-31,-22,-66,-10,-29,0,-105,-97,-125,-125,-134,-143,-147,-129,-221,-212,-211,-213,-217,-214,-213,-192,-287,-284,-478,-486,-492,-502,-502,-499,-475,-475,-421,-434,-556,-412,-574,-565,-1041,-683]} 1. e4 {[%emt 0:00:00]} c6 {[%emt 0:00:00]} 2. d4 {[%emt 0:00:00]} d5 {[%emt 0:00:00]} 3. Nc3 {[%emt 0:00:00]} dxe4 {[%emt 0:00:00]} 4. Nxe4 {[%emt 0:00:00]} Bf5 {[%emt 0:00:00]} 5. Ng3 {[%emt 0:00:00]} Bg6 {[%emt 0:00:00]} 6. Nf3 {[%emt 0:00:00]} Nd7 {[%emt 0:00:00]} 7. h4 {[%emt 0:00:00]} h6 {[%emt 0:00:00]} 8. h5 {[%emt 0:00:00]} Bh7 {[%emt 0:00:00]} 9. Bd3 {[%emt 0:00:00]} Bxd3 {[%emt 0:00:00]} 10. Qxd3 {[%emt 0:00:00]} e6 {[%emt 0:00:00]} 11. Bd2 {[%emt 0:00:00]} Ngf6 {[%emt 0:00:00]} 12. O-O-O {[%emt 0:00:00]} Be7 {[%emt 0:00:00]} 13. Kb1 {[%emt 0:00:00]} Qb6 {[%emt 0:00:00] B19: Classical Caro-Kann: 4...Bf5 main line.} 14. c4 {[%emt 0:04:37]} O-O {[%emt 0:00:00]} 15. Ne4 {[%emt 0:06:59]} c5 {[%emt 0:00:00] The position is equal.} 16. Bc3 {[%emt 0:18:50][%cal Og2g4]} (16. Ne5 {is more complex.} Rad8 17. Nxf6+ Bxf6 18. Qg3) 16... Rfd8 {[%emt 0:00:00] [#]} 17. Qc2 $146 {[%emt 0:09:37][%cal Og2g4]} ({Predecessor:} 17. Nxf6+ Bxf6 18. g4 e5 19. dxc5 Nxc5 20. Qc2 Qe6 21. Rde1 Nd3 22. Re3 e4 23. Bxf6 Qxf6 {0-1 (34) Abrahamyan,T (2377)-Muzychuk,M (2560) Astana 2019}) 17... Qa6 {[%emt 0:05:00]} (17... cxd4 $15 18. Bxd4 Qc6 19. Nxf6+ Nxf6) 18. dxc5 $11 {[%emt 0:17:23]} Qxc4 {[%emt 0:02:52]} 19. Rd4 {[%emt 0:00:20]} (19. Bxf6 $11 Qxc2+ 20. Kxc2 Nxf6 21. Nxf6+ Bxf6 22. Rxd8+ Rxd8 23. b4) 19... Qb5 {[%emt 0:01:04] Black keeps a firm grip on the game.} 20. Nd6 {[%emt 0:08:05]} Bxd6 {[%emt 0:06:36]} 21. cxd6 {[%emt 0:00:08]} Rac8 {[%emt 0:00:25]} 22. a4 {[%emt 0:05:56]} Qc6 {[%emt 0:01:48]} 23. Qe2 {[%emt 0:01:04]} (23. Rc1 $17) 23... Nd5 $19 {[%emt 0:00:53]} 24. Rc1 {[%emt 0:04:31]} Qxd6 {[%emt 0:01:01]} 25. Bd2 {[%emt 0:00:36]} Rxc1+ {[%emt 0:09:24]} 26. Bxc1 {[%emt 0:00:09]} Nc5 {[%emt 0:02:15][%cal Bd7c5,Bc5b3,Bb3c1][%mdl 32]} 27. Ne5 {[%emt 0:02:55]} (27. Rg4 $142 f5 28. Rc4) 27... Nb3 {[%emt 0:02:13] Pair of Knights!} 28. Rg4 {[%emt 0:01:37]} (28. Rc4 {is a better defense.}) 28... Nxc1 {[%emt 0:06:56]} 29. Kxc1 {[%emt 0:00:02]} Nb4 {[%emt 0:00:21]} ({Wrong is} 29... Ne3 $2 30. fxe3 Qxe5 31. Kb1 $19) 30. Nc4 {[%emt 0:03:15]} Qc6 {[%emt 0:01:17]} 31. b3 {[%emt 0:01:46]} b5 {[%emt 0:01:53]} 32. axb5 {[%emt 0:01:05]} Qxb5 {[%emt 0:00:09] [#] Threatens to win with ...Qa6.} 33. Rg3 {[%emt 0:00:48]} Qf5 {[%emt 0:01:49]} 34. Ne5 {[%emt 0:00:50]} Rd5 {[%emt 0:02:00]} 35. Re3 {[%emt 0:00:19] [#]} Rxe5 $1 {[%emt 0:00:09][%mdl 512] Weighted Error Value: White=0.69/Black=0.15 (very precise)} 0-1

[Event "GER-ch Youth-U14 2022"]
[Site "Willingen"]
[Date "2022.06.10"]
[Round "8.4"]
[White "Honisch, Alexander"]
[Black "Hagner, Bennet"]
[Result "1-0"]
[ECO "C70"]
[WhiteElo "1878"]
[BlackElo "2186"]
[Annotator "TA"]
[PlyCount "115"]
[EventDate "2022.06.05"]
[EventType "swiss"]
[EventRounds "9"]
[EventCountry "GER"]
[SourceTitle "playchess.com"]
[Source "ChessBase"]
[SourceQuality "1"]
[TimeControl "40/4500+30:900+30"]

{[%evp 12,115,15,0,0,0,0,0,15,0,6,-18,6,0,0,-39,-39,-30,-20,-49,-39,-25,17,7,19,10,19,22,15,0,0,0,0,0,0,0,0,0,0,6,12,4,0,0,0,0,133,16,44,36,29,29,31,28,41,0,0,0,6,-4,115,128,164,114,111,62,68,68,71,92,97,52,67,55,129,129,191,183,214,100,222,229,312,239,656,612,29988,890,1394,425,315,128,1187,0,0,-43,29978,-636,29979,29980,29995,29996,29996,29997,29997,468]} 1. e4 {[%emt 0:00:00]} e5 {[%emt 0:00:00]} 2. Nf3 {[%emt 0:00:00]} Nc6 {[%emt 0:00:00]} 3. Bb5 {[%emt 0:00:00]} a6 {[%emt 0:00:00]} 4. Ba4 {[%emt 0:00:00]} b5 {[%emt 0:00:00]} 5. Bb3 {[%emt 0:00:00]} Na5 {[%emt 0:00:00]} 6. Nxe5 {[%emt 0:00:00]} Nxb3 {[%emt 0:00:00]} 7. axb3 {[%emt 0:00:00][%cal Oe5f7] Nxf7! is the strong threat.} Qg5 {[%emt 0:00:00] C70: Ruy Lopez: 3...a6 4 Ba4, Norwegian and Delayed Schliemann.} 8. Nf3 {[%emt 0:13:00]} Qxg2 {[%emt 0:00:00]} 9. Rg1 {[%emt 0:00:14]} Qh3 {[%emt 0:00:00] The position is equal.} 10. d3 {[%emt 0:05:22] [#]} Bb7 $146 {[%emt 0:00:00]} ({Predecessor:} 10... Ne7 11. Bf4 d6 12. Rg3 Qd7 13. Nc3 Bb7 14. Qe2 O-O-O 15. O-O-O g6 16. Qd2 h6 {1-0 (57) Munoz Pantoja,M (2452)-Narciso Dublan,M (2550) Mollet del Valles 2016}) 11. Be3 {[%emt 0:07:10]} h6 {[%emt 0:00:00]} 12. Qe2 {[%emt 0:06:23]} f5 {[%emt 0:03:44]} 13. Nbd2 {[%emt 0:06:50]} fxe4 {[%emt 0:04:07]} 14. Nxe4 {[%emt 0:04:53]} O-O-O $1 {[%emt 0:01:06]} 15. O-O-O {[%emt 0:05:49]} Qh5 {[%emt 0:10:57] Against Ne5} 16. Nd4 {[%emt 0:12:17]} Qf7 {[%emt 0:07:23]} 17. Qg4 {[%emt 0:05:44]} Kb8 {[%emt 0:09:28]} 18. Rde1 {[%emt 0:03:50]} Ne7 {[%emt 0:09:11]} 19. Kb1 {[%emt 0:04:58]} Nd5 {[%emt 0:02:41]} 20. Nf5 {[%emt 0:03:56]} Nxe3 {[%emt 0:03:22]} 21. fxe3 {[%emt 0:01:15]} d5 {[%emt 0:04:28]} 22. Nd2 {[%emt 0:02:22]} g5 {[%emt 0:02:56]} 23. Rgf1 {[%emt 0:01:11][%cal Of5h6]} Qe6 {[%emt 0:01:59]} 24. e4 {[%emt 0:01:14]} dxe4 {[%emt 0:06:29]} 25. Nxe4 {[%emt 0:00:16][%cal Oe4d6]} Qb6 {[%emt 0:01:06] Against Ned6} 26. h4 {[%emt 0:01:10]} Rg8 {[%emt 0:06:52]} 27. hxg5 {[%emt 0:00:31]} hxg5 {[%emt 0:00:02]} 28. Nfg3 {[%emt 0:00:33]} (28. Nxg5 Qg6 29. Rg1 Bc8 $17) 28... a5 {[%emt 0:01:38] [#]} (28... Bc8 $11 29. Qe2 g4) 29. Rf6 {[%emt 0:00:24]} (29. Nxg5 Bh6 30. Re5 Rd5 $17) (29. Nf6 $1 $16 {[%cal Rf6g8]} Rg7 30. Re8 Rxe8 31. Nxe8) 29... Qa7 {[%emt 0:01:12]} 30. Qf5 {[%emt 0:00:26]} ({Don't play} 30. Nxg5 a4 31. Rf5 (31. bxa4 bxa4 32. Rf5 a3 $15) 31... axb3 32. cxb3 Qb6 $17) 30... Bg7 {[%emt 0:05:04]} 31. Rg6 {[%emt 0:00:40]} Qd4 {[%emt 0:00:22][%csl Gg7][%cal Rd4b2]} 32. Nc3 $36 {[%emt 0:00:31][%mdl 2048] Black is under pressure. Active counter play! Pair of Knights!} b4 {[%emt 0:01:22]} 33. Nd1 {[%emt 0:00:16]} a4 {[%emt 0:01:25]} 34. bxa4 {[%emt 0:00:43]} b3 {[%emt 0:00:13]} 35. cxb3 {[%emt 0:00:31]} Qxd3+ {[%emt 0:02:27]} (35... Qb4 $1 $11 {remains equal.} 36. Qe6 Bd5) 36. Qxd3 $16 {[%emt 0:00:05]} Rxd3 {[%emt 0:00:02]} 37. Nf5 {[%emt 0:00:51]} (37. Rxg5 $18 Rdd8 38. Ka2) 37... Rgd8 {[%emt 0:01:50] [#]} 38. Rxg7 {[%emt 0:00:34]} (38. Nf2 $1 $16 {[%cal Rf2d3]} Rf3 39. Nxg7 Rxf2 40. Ne6 (40. Rxg5 Rdd2 $11)) 38... Rxd1+ $14 {[%emt 0:00:07]} 39. Rxd1 {[%emt 0:00:04]} Rxd1+ $16 {[%emt 0:00:18][%mdl 4096] Endgame KRB-KRN} 40. Kc2 {[%emt 0:00:56]} Rg1 {[%emt 0:01:37] aiming for ...Be4+.} 41. Kd3 {[%emt 0:00:00] Prevents Be4+.} g4 {[%emt 0:00:00]} 42. b4 {[%emt 0:00:00][%cal Bb3b4,Bb4b5][%mdl 32]} Bf3 {[%emt 0:00:00]} (42... Rd1+ $14 43. Ke3 Rb1) 43. b5 {[%emt 0:02:52]} Rd1+ {[%emt 0:02:35]} (43... Bd5 $16 44. Rg5 Ra1) 44. Kc3 $18 {[%emt 0:01:46]} Be4 {[%emt 0:09:36]} 45. Rg5 {[%emt 0:10:13]} (45. Nd4 $18 {has better winning chances.}) 45... Kb7 {[%emt 0:02:24]} (45... Re1 $16 46. Nh6 Rc1+ 47. Kb4 Rb1) 46. Nd4 {[%emt 0:02:30]} Rg1 {[%emt 0:02:22]} 47. a5 {[%emt 0:00:31]} Rg2 $2 {[%emt 0:00:36]} (47... g3 48. Ne2 Ra1 49. Nxg3 Bf3) 48. Ne6 {[%emt 0:00:39] Black must now prevent Nc5+.} Bf3 {[%emt 0:02:36]} 49. Rg7 {[%emt 0:00:30]} (49. Nc5+ $142 Ka7 50. Rg7 Bb7 51. Rxc7 Rg3+ 52. Kd4 Rg1 53. b6+ Kb8 54. Rxb7+ Kc8 55. Rg7) 49... Kb8 {[%emt 0:00:25]} 50. a6 {[%emt 0:00:50]} (50. Nxc7 $142 Re2 51. Na6+ Kc8 52. Nc5) 50... Rg1 {[%emt 0:00:49]} 51. Kd4 {[%emt 0:00:34]} (51. Kb4 $18) 51... g3 $2 {[%emt 0:00:37][%mdl 8192]} (51... Rc1 $16 52. Kd3 Ka7) 52. Rxc7 $2 {[%emt 0:00:33]} (52. Nxc7 $18 {Threatens to win with b6.} Rd1+ 53. Ke3) 52... Rd1+ $11 {[%emt 0:00:21]} 53. Ke5 {[%emt 0:00:31] White wants to mate with b6.} g2 $2 {[%emt 0:00:37][%mdl 8192]} (53... Re1+ $15 54. Kf4 Rxe6) 54. a7+ {[%emt 0:00:28]} Ka8 {[%emt 0:00:01]} 55. b6 {[%emt 0:00:22] White mates.} g1=Q {[%emt 0:00:48]} 56. Rc8+ {[%emt 0:00:08]} Kb7 {[%emt 0:00:01]} 57. a8=Q+ {[%emt 0:00:12]} Kxb6 {[%emt 0:00:02]} 58. Rb8+ {Weighted Error Value: White=0.40/Black=0.57} 1-0